bitfinex/quotes_SOLUSD_20260109
["timestamp","ask_amount","ask_price","bid_price","bid_amount"]
[1767951840572,2.23705207,138.75,138.72,7.87395337]
[1767951841179,2.93117733,138.75,138.72,7.87395337]
[1767951844760,0.69412526,138.75,138.73,0.65293942]
[1767951845261,0.69412526,138.75,138.72,7.86166463]
[1767951850286,4.18905675,138.75,138.72,7.86166463]
[1767951850892,3.49493149,138.74,138.72,7.86166463]
[1767951851095,4.19321292,138.75,138.72,7.86166463]
[1767951856110,4.19321292,138.74,138.71,0.65293942]
[1767951856486,4.19321292,138.74,138.71,7.86218166]
[1767951856686,0.66828144,138.74,138.71,7.86218166]
[1767951856887,3.49493149,138.75,138.72,7.86159286]
[1767951858294,3.49493149,138.75,138.73,0.65293942]
[1767951858614,3.49493149,138.75,138.72,0.65293942]
[1767951858929,4.19321292,138.75,138.72,0.65293942]
[1767951861819,4.19321292,138.75,138.72,7.86163084]
[1767951863223,0.69828143,138.75,138.72,7.86163084]
[1767951863429,4.19321292,138.75,138.72,7.86163084]
[1767951866594,0.69828143,138.75,138.72,7.86163084]
[1767951866817,4.19321292,138.75,138.72,7.86163084]
[1767951875120,3.49493149,138.74,138.72,7.86163084]
[1767951876923,0.69828143,138.75,138.72,7.86163084]
[1767951876924,4.19321292,138.75,138.72,7.86163084]
[1767951877222,4.16321293,138.75,138.72,7.86163084]
[1767951879229,4.16321293,138.75,138.72,0.65293942]
[1767951879516,3.49493149,138.74,138.72,0.65293942]
[1767951879820,0.66828144,138.75,138.72,0.65293942]
[1767951880020,3.49493149,138.74,138.72,0.65293942]
[1767951880211,4.16321293,138.75,138.72,0.65293942]
[1767951880600,0.68070206,138.73,138.71,7.20908532]
[1767951881901,0.68070206,138.73,138.71,7.88776278]
[1767951882106,4.17563355,138.74,138.71,7.88776278]
[1767951886728,0.68070206,138.74,138.71,7.88776278]
[1767951887027,0.68070206,138.74,138.72,0.71110116]
[1767951887723,0.68070206,138.74,138.71,7.20908532]
[1767951887911,0.68070206,138.74,138.71,7.92018648]
[1767951894734,0.68070206,138.74,138.71,7.20908532]
[1767951898841,4.19798826,138.75,138.72,0.71110116]
[1767951900043,0.70305677,138.74,138.71,7.92018648]
[1767951902231,4.19798826,138.74,138.71,7.92018648]
[1767951903347,0.70305677,138.74,138.71,7.92018648]
[1767951903547,4.19798826,138.74,138.71,7.92018648]
[1767951906533,2.94027338,138.74,138.71,7.92018648]
[1767951907739,2.94027338,138.74,138.72,0.69379498]
[1767951909359,0.70305677,138.74,138.72,0.69379498]
[1767951910650,0.70305677,138.74,138.71,7.9028803]
[1767951911959,2.23721661,138.75,138.72,0.69379498]
[1767951911960,2.93156736,138.75,138.72,0.69379498]
[1767951912452,0.69435075,138.74,138.72,0.69379498]
[1767951914162,0.69435075,138.73,138.7,0.2]
[1767951914370,0.69435075,138.73,138.7,0.89379498]
[1767951914663,0.69435075,138.72,138.7,0.89379498]
[1767951915244,2.23721661,138.73,138.7,0.89379498]
[1767951915245,0.69435075,138.73,138.7,0.89379498]
[1767951915563,2.93156736,138.73,138.7,0.89379498]
[1767951917363,10.13986973,138.73,138.7,0.89379498]
[1767951917559,0.69435075,138.72,138.7,0.2]
[1767951917745,0.69435075,138.7,138.67,0.2]
[1767951917944,13.16,138.72,138.66,0.2]
[1767951917945,2.29991434,138.68,138.66,0.2]
[1767951918161,2.23721661,138.67,138.66,0.2]
[1767951918542,0.69435075,138.72,138.66,2.43721661]
[1767951918743,2.93156736,138.71,138.67,7.21131375]
[1767951919056,2.93156736,138.71,138.68,0.69379498]
[1767951920245,10.14086349,138.71,138.68,0.69379498]
[1767951921362,0.69435075,138.7,138.67,0.69379498]
[1767951921576,2.23721661,138.71,138.68,7.90452273]
[1767951921577,0.69435075,138.71,138.68,7.90452273]
[1767951922044,0.69435075,138.71,138.69,0.69379498]
[1767951923547,0.69435075,138.71,138.68,0.69379498]
[1767951924967,0.69435075,138.7,138.67,7.90516009]
[1767951925948,2.93156736,138.71,138.68,0.69379498]
[1767951926150,2.23721661,138.7,138.68,0.69379498]
[1767951926350,2.93156736,138.7,138.67,7.90516009]
[1767951926958,2.93156736,138.7,138.67,0.69379498]
[1767951927267,0.69435075,138.69,138.66,7.69596984]
[1767951927852,0.69435075,138.67,138.65,7.41216218]
[1767951928052,2.23721661,138.68,138.66,0.69379498]
[1767951928361,7.2100011,138.7,138.66,0.69379498]
[1767951928545,2.23721661,138.68,138.65,8.10595716]
[1767951929965,2.93156736,138.68,138.65,8.10595716]
[1767951930269,15.39721661,138.74,138.65,0.2]
[1767951930270,2.93156736,138.67,138.65,0.2]
[1767951931051,0.69435075,138.66,138.65,0.2]
[1767951931370,0.66435076,138.66,138.65,0.2]
[1767951931563,2.90156737,138.66,138.65,0.2]
[1767951933371,2.23721661,138.66,138.64,0.86916992]
[1767951933783,2.90184425,138.66,138.64,0.86916992]
[1767951933973,2.90184425,138.66,138.64,0.2]
[1767951935962,0.66462764,138.66,138.64,0.2]
[1767951936158,2.90184425,138.66,138.64,0.86916992]
[1767951936565,2.23721661,138.65,138.64,0.2]
[1767951936781,0.66462764,138.65,138.64,0.2]
[1767951937273,0.66462764,138.65,138.6,13.50216157]
[1767951937274,6.6801107,138.62,138.51,12.45784218]
[1767951937478,6.0010596,138.53,138.44,8.25410971]
[1767951937654,3.76384299,138.53,138.47,2.23721661]
[1767951937847,3.76384299,138.53,138.46,7.22210253]
[1767951937848,3.76384299,138.53,138.48,2.23721661]
[1767951938054,3.76384299,138.53,138.49,7.22073795]
[1767951938365,3.76384299,138.53,138.49,9.45795456]
[1767951938570,3.76384299,138.53,138.5,0.28432314]
[1767951939069,3.76384299,138.53,138.49,25.27258284]
[1767951939286,3.76384299,138.53,138.5,0.28432314]
[1767951939474,3.76384299,138.53,138.51,0.66916992]
[1767951940170,20.37694684,138.57,138.51,0.66916992]
[1767951940171,2.23721661,138.54,138.51,0.66916992]
[1767951940471,20.37694684,138.57,138.49,7.88980886]
[1767951940472,2.23721661,138.52,138.49,7.88980886]
[1767951941178,2.23721661,138.5,138.47,0.66916992]
[1767951941773,2.23721661,138.49,138.47,0.66916992]
[1767951941970,2.23721661,138.53,138.47,0.66916992]
[1767951942165,2.23721661,138.5,138.47,7.89061802]
[1767951942372,2.23721661,138.51,138.49,0.66916992]
[1767951942567,2.90184425,138.51,138.47,7.89061802]
[1767951942863,2.23721661,138.51,138.48,0.95349306]
[1767951943352,2.23721661,138.52,138.48,0.95349306]
[1767951943775,2.23721661,138.52,138.49,7.88990787]
[1767951944669,2.90184425,138.53,138.5,0.66916992]
[1767951944972,2.90184425,138.53,138.49,7.88990787]
[1767951944973,0.66462764,138.53,138.49,7.88990787]
[1767951945276,2.90184425,138.53,138.49,7.88990787]
[1767951945670,0.66462764,138.53,138.49,7.88990787]
[1767951945869,2.23721661,138.52,138.49,7.88990787]
[1767951948480,2.23721661,138.52,138.5,0.67331791]
[1767951948976,2.90184425,138.53,138.5,0.67331791]
[1767951949280,2.90184425,138.53,138.5,7.8934789]
[1767951949857,2.87184426,138.53,138.5,7.8934789]
[1767951950676,2.23721661,138.51,138.49,0.67331791]
[1767951951175,2.23721661,138.51,138.48,7.22112969]
[1767951951480,3.73330347,138.48,138.47,7.50610403]
[1767951952059,3.73330347,138.48,138.45,7.89584338]
[1767951952378,3.73330347,138.48,138.46,7.22220372]
[1767951952573,0.68399472,138.51,138.47,9.45864518]
[1767951952772,0.68399472,138.51,138.48,0.67331791]
[1767951953157,0.68399472,138.51,138.48,0.95764105]
[1767951954475,2.92121133,138.52,138.49,0.67331791]
[1767951954779,0.68399472,138.51,138.48,7.50514447]
[1767951954977,2.92121133,138.51,138.47,7.22165182]
[1767951955162,2.92121133,138.5,138.47,0.67331791]
[1767951955479,0.68399472,138.5,138.47,0.67331791]
[1767951956281,0.68399472,138.5,138.47,7.89509113]
[1767951956474,0.68399472,138.5,138.46,8.17952125]
[1767951956780,0.68399472,138.5,138.47,7.89507711]
[1767951957376,0.68399472,138.5,138.47,7.2217592]
[1767951957764,0.68399472,138.5,138.46,8.17987209]
[1767951957972,0.68399472,138.49,138.46,7.89554895]
[1767951958280,2.23721661,138.48,138.45,7.89604611]
[1767951958455,7.2202705,138.5,138.41,3.76447124]
[1767951958456,2.92121133,138.47,138.44,0.67331791]
[1767951959057,2.23721661,138.46,138.43,7.89698224]
[1767951960785,2.92121133,138.47,138.43,7.89698224]
[1767951960966,0.68399472,138.47,138.43,7.89698224]
[1767951961483,2.92121133,138.54,138.47,0.67331791]
[1767951961669,0.68399472,138.53,138.49,0.67331791]
[1767951961877,2.92121133,138.53,138.49,0.67331791]
[1767951962486,2.23721661,138.52,138.49,0.67331791]
[1767951962688,2.23721661,138.52,138.49,7.89391594]
[1767951963371,0.69625551,138.52,138.49,0.67331791]
[1767951963671,0.69625551,138.52,138.49,7.89400647]
[1767951963672,2.23721661,138.52,138.49,7.89400647]
[1767951965579,0.69625551,138.53,138.49,7.89400647]
[1767951965779,2.23721661,138.52,138.49,7.89400647]
[1767951965987,2.23721661,138.51,138.49,0.67331791]
[1767951966183,2.23721661,138.51,138.48,7.88683843]
[1767951966796,2.23721661,138.51,138.49,0.66572729]
[1767951966964,2.93347212,138.52,138.48,7.22111114]
[1767951967162,2.93347212,138.52,138.48,7.88683843]
[1767951967565,2.93347212,138.52,138.49,0.66572729]
[1767951968181,0.69625551,138.52,138.49,0.66572729]
[1767951968385,0.69625551,138.52,138.49,7.22046201]
[1767951969465,3.50620211,138.53,138.49,7.8861893]
[1767951969672,4.20245762,138.53,138.49,7.8861893]
[1767951971773,0.69625551,138.52,138.49,7.8861893]
[1767951974877,11.42069276,138.54,138.5,0.66572729]
[1767951975195,0.69625551,138.53,138.5,0.66572729]
[1767951977393,0.69625551,138.53,138.5,7.88584747]
[1767951978188,4.20245762,138.54,138.51,7.88532977]
[1767951978580,4.20245762,138.54,138.51,7.21960248]
[1767951978781,4.20245762,138.55,138.52,0.66572729]
[1767951978982,116.97625551,138.56,138.52,0.66572729]
[1767951979182,4.20245762,138.55,138.52,0.66572729]
[1767951979396,3.50620211,138.55,138.52,0.66572729]
[1767951979603,0.69625551,138.54,138.51,7.88532977]
[1767951979980,0.69625551,138.54,138.51,7.21960248]
[1767951980595,0.69625551,138.53,138.51,7.21960248]
[1767951982402,4.20245762,138.55,138.51,7.88532977]
[1767951982702,0.69625551,138.55,138.51,7.88532977]
[1767951983084,13.87625551,138.57,138.53,0.66572729]
[1767951983495,0.69625551,138.56,138.52,4.1719294]
[1767951984085,0.69625551,138.56,138.53,7.21865299]
[1767951984797,0.69625551,138.56,138.53,7.88438028]
[1767951985192,0.69625551,138.56,138.53,25.93101277]
[1767951985694,0.69625551,138.57,138.53,25.93101277]
[1767951985893,0.69625551,138.56,138.53,25.93101277]
[1767951986688,110.31467143,138.61,138.54,0.28432314]
[1767951986893,3.50620211,138.58,138.54,0.95005043]
[1767951987104,3.50620211,138.58,138.55,0.66572729]
[1767951987889,3.50620211,138.58,138.55,7.8830589]
[1767951988302,3.50620211,138.59,138.56,0.66572729]
[1767951991587,3.50620211,138.59,138.56,7.88279631]
[1767951991792,3.50620211,138.59,138.53,0.66572729]
[1767951991793,3.50620211,138.57,138.53,0.66572729]
[1767951991993,3.50620211,138.55,138.53,0.66572729]
[1767951992188,3.50620211,138.55,138.53,7.88408076]
[1767951992597,3.50620211,138.55,138.53,0.66572729]
[1767951992795,3.50620211,138.55,138.51,0.70212478]
[1767951993403,3.50620211,138.55,138.52,0.70212478]
[1767951993804,3.50620211,138.55,138.52,7.92122114]
[1767951995326,3.50620211,138.55,138.53,0.70212478]
[1767951995802,3.50620211,138.56,138.53,0.70212478]
[1767951995998,0.68653555,138.59,138.53,0.70212478]
[1767951996214,4.19273766,138.59,138.54,0.70212478]
[1767951996422,3.50620211,138.58,138.54,0.70212478]
[1767951996605,0.68653555,138.59,138.55,0.70212478]
[1767951996606,4.19273766,138.59,138.55,0.70212478]
[1767951996814,0.13583686,138.58,138.54,0.98644792]
[1767951996997,3.50620211,138.59,138.55,0.70212478]
[1767951997223,3.50620211,138.58,138.55,0.70212478]
[1767951997618,3.50620211,138.58,138.55,7.91946704]
[1767952003208,3.50620211,138.59,138.56,0.70212478]
[1767952003709,3.50620211,138.6,138.57,0.70212478]
[1767952006613,0.68653555,138.61,138.57,0.70212478]
[1767952006812,3.50620211,138.59,138.57,0.70212478]
[1767952007832,3.50620211,138.59,138.57,7.91853494]
[1767952008223,3.50620211,138.59,138.58,0.70780748]
[1767952008623,3.50620211,138.6,138.58,0.70780748]
[1767952008936,0.14041083,138.61,138.58,0.70780748]
[1767952009138,3.50620211,138.6,138.58,0.70780748]
[1767952009830,3.50620211,138.6,138.57,7.21641016]
[1767952010023,3.50620211,138.6,138.57,7.92421764]
[1767952014923,0.14041083,138.61,138.58,0.70780748]
[1767952015238,3.64661294,138.61,138.58,0.70780748]
[1767952018441,0.67650033,138.6,138.57,7.21641016]
[1767952019140,0.67650033,138.6,138.58,7.21593743]
[1767952020121,0.68191537,138.61,138.58,7.21593743]
[1767952020314,3.50620211,138.62,138.59,0.70780748]
[1767952020519,121.13309156,138.64,138.59,0.70780748]
[1767952020520,103.1,138.64,138.6,0.70780748]
[1767952021028,106.74661294,138.64,138.6,0.70780748]
[1767952021417,103.24041083,138.64,138.6,0.70780748]
[1767952021616,106.74661294,138.64,138.6,0.70780748]
[1767952022137,106.74661294,138.64,138.6,7.92263271]
[1767952023638,103.24041083,138.64,138.6,7.92263271]
[1767952023842,103.24041083,138.64,138.61,0.69735273]
[1767952024045,3.64661294,138.64,138.61,0.69735273]
[1767952024648,0.14041083,138.64,138.61,0.69735273]
[1767952024848,3.64661294,138.64,138.61,0.69735273]
[1767952028026,3.50620211,138.64,138.61,7.91179456]
[1767952028228,4.20885488,138.65,138.62,0.69735273]
[1767952029950,3.50620211,138.64,138.62,0.69735273]
[1767952030535,2.24043955,138.64,138.62,0.69735273]
[1767952031647,2.24043955,138.64,138.61,0.69735273]
[1767952034369,2.24043955,138.64,138.61,7.91182867]
[1767952035444,2.24043955,138.64,138.62,0.69735273]
[1767952038146,2.24043955,138.65,138.63,0.69735273]
[1767952039758,2.24043955,138.65,138.62,7.91128447]
[1767952039759,2.36032036,138.65,138.62,7.91128447]
[1767952039965,0.59682505,138.66,138.59,0.28432314]
[1767952040256,0.099,138.62,138.6,7.21473195]
[1767952040469,2.24043955,138.62,138.59,7.21535783]
[1767952041267,2.24043955,138.63,138.59,7.21535783]
[1767952042253,2.24043955,138.62,138.59,7.21535783]
[1767952042559,103.1,138.65,138.59,7.91271056]
[1767952042741,2.24043955,138.62,138.59,7.91271056]
[1767952048270,2.24043955,138.62,138.58,0.69735273]
[1767952050667,0.2,138.67,138.63,0.69735273]
[1767952050873,0.2,138.67,138.64,0.69735273]
[1767952052275,2.44043955,138.67,138.64,7.91004456]
[1767952054271,2.44043955,138.67,138.64,7.21269183]
[1767952054453,0.2,138.67,138.64,7.21269183]
[1767952054654,2.44043955,138.67,138.64,7.21269183]
[1767952055262,2.44043955,138.67,138.64,7.93286305]
[1767952056459,0.2,138.67,138.64,7.93286305]
[1767952060375,0.2,138.67,138.65,0.72017122]
[1767952061680,2.24043955,138.66,138.62,0.72017122]
[1767952061871,7.41146388,138.67,138.62,0.72017122]
[1767952061872,2.24043955,138.65,138.62,0.72017122]
[1767952062770,2.24043955,138.66,138.63,0.72017122]
[1767952063661,2.24043955,138.65,138.63,0.72017122]
[1767952064989,2.24043955,138.66,138.63,0.72017122]
[1767952066295,2.24043955,138.65,138.63,0.72017122]
[1767952068762,2.24043955,138.66,138.63,0.72017122]
[1767952069188,10.24043955,138.66,138.63,0.72017122]
[1767952069588,10.24043955,138.66,138.64,0.71272957]
[1767952070374,2.24043955,138.66,138.64,0.71272957]
[1767952071986,0.2,138.67,138.65,0.71272957]
[1767952074180,2.44043955,138.67,138.65,0.71272957]
[1767952075786,0.2,138.67,138.65,0.71272957]
[1767952075993,2.44043955,138.67,138.65,0.71272957]
[1767952077087,2.24043955,138.66,138.61,7.92697895]
[1767952077392,2.24043955,138.64,138.62,0.71272957]
[1767952078174,2.21043956,138.64,138.62,0.71272957]
[1767952078491,2.24043955,138.64,138.62,0.71272957]
[1767952081593,2.24043955,138.65,138.62,0.71272957]
[1767952082596,7.4115888,138.67,138.62,0.71272957]
[1767952082597,2.24043955,138.64,138.62,0.71272957]
[1767952089493,2.24043955,138.65,138.62,0.71272957]
[1767952090481,3.50045261,138.65,138.62,0.71272957]
[1767952095086,11.50045261,138.65,138.62,0.71272957]
[1767952098091,3.50045261,138.64,138.62,0.71272957]
[1767952098905,3.50045261,138.64,138.61,7.21445293]
[1767952099107,3.50045261,138.64,138.62,0.71878719]
[1767952099707,3.50045261,138.64,138.61,7.21445293]
[1767952099882,3.50045261,138.64,138.61,7.93324012]
[1767952100184,3.50045261,138.64,138.62,0.71878719]
[1767952100382,3.50045261,138.64,138.61,7.93324012]
[1767952102405,3.50045261,138.64,138.62,0.71878719]
[1767952107507,8.0,138.65,138.62,0.71878719]
[1767952107810,11.50045261,138.65,138.62,0.71878719]
[1767952107992,8.0,138.65,138.62,7.21389778]
[1767952108190,7.97000001,138.65,138.63,0.71878719]
[1767952109303,3.70045261,138.67,138.63,0.71878719]
[1767952109695,3.70045261,138.67,138.63,7.93179325]
[1767952109898,3.70045261,138.67,138.64,0.71878719]
[1767952113022,0.2,138.67,138.64,0.71878719]
[1767952113318,3.70045261,138.67,138.63,7.88210456]
[1767952113818,3.50045261,138.66,138.63,7.88210456]
[1767952114014,0.2,138.67,138.63,7.88210456]
[1767952114210,3.50045261,138.66,138.63,7.88210456]
[1767952115522,3.47045262,138.66,138.63,7.88210456]
[1767952118523,3.50045261,138.65,138.63,0.6690985]
[1767952119222,8.0,138.66,138.61,7.21425387]
[1767952119223,3.50045261,138.64,138.61,7.21425387]
[1767952119438,3.50045261,138.63,138.6,7.21477813]
[1767952119595,0.11190106,138.65,138.6,7.21477813]
[1767952119914,3.50045261,138.63,138.6,7.21477813]
[1767952121122,3.50045261,138.63,138.61,0.6690985]
[1767952128733,4.16955111,138.62,138.57,0.98867432]
[1767952128932,0.6690985,138.62,138.59,0.70435118]
[1767952129142,3.50045261,138.62,138.6,0.70435118]
[1767952129936,4.16955111,138.63,138.6,0.70435118]
[1767952130829,3.50045261,138.62,138.6,0.70435118]
[1767952131037,3.47045262,138.62,138.6,0.70435118]
[1767952131952,4.16955111,138.63,138.6,0.70435118]
[1767952132741,0.6690985,138.63,138.6,0.70435118]
[1767952132947,4.16955111,138.63,138.6,0.70435118]
[1767952134033,3.50045261,138.62,138.6,0.70435118]
[1767952135944,3.59945261,138.62,138.6,0.70435118]
[1767952136246,0.66339751,138.61,138.58,7.92039967]
[1767952137046,7.21317927,138.64,138.59,0.70435118]
[1767952137047,4.16955111,138.63,138.59,0.70435118]
[1767952137848,3.50045261,138.62,138.59,0.70435118]
[1767952138744,3.50045261,138.62,138.59,7.91983931]
[1767952140921,3.50045261,138.62,138.59,0.70435118]
[1767952141122,3.59945261,138.62,138.59,0.70435118]
[1767952141354,4.16385012,138.61,138.58,0.70435118]
[1767952141524,3.50045261,138.6,138.58,0.70435118]
[1767952143043,4.16385012,138.61,138.58,0.70435118]
[1767952143347,4.16385012,138.61,138.58,7.92034885]
[1767952144637,4.16385012,138.61,138.58,0.70435118]
[1767952147545,4.16385012,138.61,138.58,7.92038825]
[1767952149157,11.50045261,138.62,138.59,0.66862262]
[1767952149353,11.50045261,138.62,138.6,0.66862262]
[1767952149354,8.0,138.62,138.6,0.66862262]
[1767952155564,2.33972557,138.63,138.6,0.66862262]
[1767952156634,0.6690985,138.66,138.61,0.66862262]
[1767952156938,2.33972557,138.65,138.61,0.66862262]
[1767952157140,0.099,138.65,138.61,0.66862262]
[1767952157338,2.33972557,138.65,138.61,0.66862262]
[1767952157641,2.24072557,138.64,138.61,0.66862262]
[1767952157840,0.099,138.65,138.62,0.66862262]
[1767952158158,2.24072557,138.64,138.62,0.66862262]
[1767952164262,8.099,138.65,138.62,0.66862262]
[1767952164566,2.24072557,138.64,138.62,0.66862262]
[1767952165169,2.90412308,138.64,138.61,0.66862262]
[1767952165872,2.24072557,138.63,138.61,0.66862262]
[1767952166072,2.24072557,138.63,138.6,0.66862262]
[1767952166073,2.24072557,138.62,138.6,0.66862262]
[1767952166771,2.34536955,138.63,138.6,0.66862262]
[1767952167352,2.34536955,138.63,138.6,7.8835908]
[1767952168778,0.10464398,138.63,138.6,7.8835908]
[1767952170970,8.0,138.63,138.62,0.66862262]
[1767952171357,2.90982407,138.66,138.61,9.45504999]
[1767952171560,0.72222999,138.65,138.61,27.49126671]
[1767952171753,0.72222999,138.65,138.61,27.54716821]
[1767952173663,0.72222999,138.65,138.61,27.49126671]
[1767952174776,0.72222999,138.65,138.62,0.0559015]
[1767952176570,2.96295556,138.65,138.61,7.27022592]
[1767952178154,0.72222999,138.65,138.61,0.0559015]
[1767952178362,2.96295556,138.65,138.61,0.0559015]
[1767952178978,2.9031759,138.64,138.61,0.0559015]
[1767952179178,0.66245033,138.63,138.6,7.55523185]
[1767952180874,2.9031759,138.64,138.6,7.55523185]
[1767952181077,2.9031759,138.64,138.61,0.0559015]
[1767952181677,0.66245033,138.63,138.6,7.55523185]
[1767952182183,0.66245033,138.63,138.6,7.27090871]
[1767952184678,0.66245033,138.64,138.61,0.0559015]
[1767952191281,2.9031759,138.64,138.6,0.0559015]
[1767952193293,0.70059389,138.62,138.59,7.21552781]
[1767952193486,2.94131946,138.62,138.59,7.27142931]
[1767952194292,0.70059389,138.61,138.59,7.21552781]
[1767952194502,0.6705939,138.61,138.59,7.21552781]
[1767952200200,2.94131946,138.63,138.59,0.08590149]
[1767952200500,0.70059389,138.63,138.6,0.08590149]
[1767952201181,0.70059389,138.62,138.59,0.08590149]
[1767952204397,0.66944989,138.61,138.58,25.34169023]
[1767952205690,0.66944989,138.62,138.58,25.34169023]
[1767952206003,0.66944989,138.63,138.59,0.08590149]
[1767952206399,0.66944989,138.63,138.59,2.32662706]
[1767952206604,0.66944989,138.63,138.6,0.08590149]
[1767952209304,0.66944989,138.63,138.6,7.3009087]
[1767952210398,0.66944989,138.63,138.6,25.33842673]
[1767952214190,0.66944989,138.63,138.6,25.25252524]
[1767952214396,0.66944989,138.66,138.61,0.08590149]
[1767952214699,4.17004457,138.65,138.61,0.08590149]
[1767952215904,0.66944989,138.65,138.61,0.08590149]
[1767952216412,0.66944989,138.64,138.61,0.08590149]
[1767952216708,0.66944989,138.63,138.6,25.25252524]
[1767952216903,0.66944989,138.63,138.6,25.33842673]
[1767952217588,0.66944989,138.63,138.6,18.12341952]
[1767952217784,0.66944989,138.63,138.6,18.03751803]
[1767952218283,0.66944989,138.63,138.6,18.12341952]
[1767952221603,0.66944989,138.63,138.6,0.08590149]
[1767952229714,0.66944989,138.63,138.59,25.25434734]
[1767952229902,0.66944989,138.63,138.59,25.34024883]
[1767952232102,0.66944989,138.61,138.58,7.21580427]
[1767952232420,0.66944989,138.6,138.58,7.21580427]
[1767952232601,0.6394499,138.6,138.58,7.21580427]
[1767952233403,0.6394499,138.6,138.57,25.25752586]
[1767952235220,0.6394499,138.6,138.57,25.37342734]
[1767952237100,0.6394499,138.6,138.57,28.87402202]
[1767952239529,0.60944991,138.6,138.57,28.87402202]
[1767952244633,0.60944991,138.6,138.57,25.37342734]
[1767952245231,0.60944991,138.6,138.57,28.87402202]
[1767952247412,0.60944991,138.6,138.57,25.37342734]
[1767952251034,0.70146949,138.59,138.57,7.21656924]
[1767952251223,0.6714695,138.59,138.57,7.21656924]
[1767952252334,0.64146951,138.59,138.56,7.36277265]
[1767952252933,0.64146951,138.59,138.56,10.86336733]
[1767952253535,0.64146951,138.59,138.56,7.36277265]
[1767952254818,0.70146949,138.6,138.57,0.20590145]
[1767952255218,0.70146949,138.6,138.56,10.92336731]
[1767952255538,0.70146949,138.6,138.56,7.42277263]
[1767952256531,4.20206417,138.6,138.56,7.42277263]
[1767952256829,0.70146949,138.59,138.56,7.42277263]
[1767952261252,0.70146949,138.59,138.56,7.21687118]
[1767952262547,0.70146949,138.59,138.56,10.71746586]
[1767952263630,0.70146949,138.59,138.56,10.92336731]
[1767952263853,0.70146949,138.59,138.56,7.42277263]
[1767952264056,0.70146949,138.59,138.56,10.92336731]
[1767952264931,1e-08,138.59,138.56,10.92336731]
[1767952265356,13.16,138.63,138.57,4.2248193]
[1767952265647,103.1,138.66,138.59,3.50059468]
[1767952265850,3.50059468,138.65,138.59,0.72422462]
[1767952266030,3.50059468,138.64,138.59,4.2248193]
[1767952266435,11.50059468,138.64,138.59,4.2248193]
[1767952266636,11.50059468,138.64,138.6,7.21500721]
[1767952266837,0.65990644,138.63,138.6,7.21500721]
[1767952268250,0.62990645,138.63,138.6,7.21500721]
[1767952268435,0.62990645,138.63,138.6,7.93923183]
[1767952272543,0.62990645,138.63,138.6,7.21500721]
[1767952279356,7.21226635,138.66,138.62,0.72422462]
[1767952279357,0.65990644,138.65,138.62,0.72422462]
[1767952279565,0.65990644,138.65,138.61,16.12464089]
[1767952279866,2.90032271,138.66,138.62,0.72422462]
[1767952280363,0.65990644,138.66,138.62,0.72422462]
[1767952281071,0.65990644,138.66,138.64,7.21292556]
[1767952281855,2.90032271,138.65,138.63,7.93763868]
[1767952287166,2.90032271,138.65,138.63,7.21341406]
[1767952290794,0.65990644,138.65,138.63,7.93763868]
[1767952290952,0.2,138.67,138.64,0.72422462]
[1767952291262,3.10032271,138.67,138.64,0.72422462]
[1767952291460,2.90032271,138.66,138.63,39.13125333]
[1767952291662,2.90032271,138.65,138.62,7.93792313]
[1767952293078,2.90032271,138.65,138.62,7.21369851]
[1767952293079,0.6729261,138.64,138.62,7.21369851]
[1767952293264,0.64292611,138.64,138.62,7.21369851]
[1767952293692,2.24041627,138.65,138.62,7.93656968]
[1767952294189,2.24041627,138.64,138.62,7.21369851]
[1767952295294,2.91334237,138.64,138.62,7.21369851]
[1767952298998,0.6729261,138.64,138.62,7.21369851]
[1767952299488,2.91334237,138.66,138.63,0.72287117]
[1767952300093,3.11334237,138.67,138.63,0.72287117]
[1767952301179,3.11334237,138.67,138.64,7.93579673]
[1767952301376,2.91334237,138.65,138.63,7.2133246]
[1767952301581,2.91334237,138.65,138.62,7.93666366]
[1767952301582,0.6729261,138.65,138.62,7.93666366]
[1767952301803,2.24041627,138.64,138.62,7.93666366]
[1767952302008,2.24041627,138.63,138.61,7.93731103]
[1767952302207,0.47994158,138.62,138.6,7.21486186]
[1767952302502,2.72035785,138.62,138.6,7.21500557]
[1767952304301,0.47994158,138.62,138.6,7.21500557]
[1767952305505,0.5729261,138.6,138.58,7.21570517]
[1767952305807,2.33941627,138.59,138.56,18.76481174]
[1767952306017,2.33941627,138.59,138.57,7.2162822]
[1767952306306,0.099,138.59,138.58,7.21604849]
[1767952306486,2.81334237,138.6,138.57,7.21656924]
[1767952307177,7.21361602,138.63,138.57,7.21656924]
[1767952307383,2.24041627,138.6,138.58,0.6719021]
[1767952310011,2.24041627,138.6,138.57,7.88847134]
[1767952310189,2.24041627,138.6,138.58,0.6719021]
[1767952312185,2.24041627,138.6,138.58,7.88790589]
[1767952312503,2.24041627,138.6,138.58,0.6719021]
[1767952313795,2.24041627,138.6,138.58,7.88786153]
[1767952314510,2.24041627,138.61,138.58,7.88786153]
[1767952314714,2.24041627,138.61,138.59,0.6719021]
[1767952314909,2.24041627,138.62,138.59,0.6719021]
[1767952315889,2.24041627,138.62,138.59,7.887302]
[1767952316084,2.24041627,138.61,138.59,7.887302]
[1767952316914,7.21292556,138.64,138.54,0.6719021]